[Event "Early-Titled-Tuesday-Blitz-May-07-2024"]
[Site "Chess.com"]
[Date "2024.05.07"]
[Round "1"]
[White "wonderfultime"]
[Black "Sjakkerntobi"]
[Result "1-0"]
[WhiteElo "3096"]
[BlackElo "2538"]
[TimeControl "180+1"]
[EndTime "8:06:40 PDT"]
[Termination "wonderfultime won by resignation"]

1. d4 {[%clk 0:03:00.9]} 1... d5 {[%clk 0:02:58.4]} 2. Nf3 {[%clk 0:02:57.6]}
2... Nf6 {[%clk 0:02:57]} 3. Bf4 {[%clk 0:02:58.3]} 3... c5 {[%clk 0:02:55.2]}
4. c3 {[%clk 0:02:58.5]} 4... Nc6 {[%clk 0:02:55.3]} 5. e3 {[%clk 0:02:58.5]}
5... Bg4 {[%clk 0:02:54.5]} 6. Qb3 {[%clk 0:02:55.8]} 6... Qb6 {[%clk
0:02:24.7]} 7. dxc5 {[%clk 0:02:27.7]} 7... Qxb3 {[%clk 0:02:15.8]} 8. axb3
{[%clk 0:02:28.6]} 8... Bxf3 {[%clk 0:02:16.4]} 9. gxf3 {[%clk 0:02:29.5]} 9...
e5 {[%clk 0:02:17]} 10. Bg3 {[%clk 0:02:14.5]} 10... Bxc5 {[%clk 0:02:14.5]} 11.
b4 {[%clk 0:02:15.1]} 11... Bd6 {[%clk 0:02:13.6]} 12. Nd2 {[%clk 0:02:12.8]}
12... O-O {[%clk 0:01:39.7]} 13. e4 {[%clk 0:02:11.6]} 13... Rfe8 {[%clk
0:01:14.1]} 14. Bh3 {[%clk 0:01:40.6]} 14... a6 {[%clk 0:00:59.1]} 15. O-O
{[%clk 0:01:31.5]} 15... Rad8 {[%clk 0:00:53.9]} 16. Rfd1 {[%clk 0:01:20.3]}
16... dxe4 {[%clk 0:00:30]} 17. fxe4 {[%clk 0:01:17.5]} 17... Nh5 {[%clk
0:00:29.7]} 18. Nc4 {[%clk 0:01:15.7]} 18... Bc7 {[%clk 0:00:26.3]} 19. Bd7
{[%clk 0:01:15.9]} 19... Rf8 {[%clk 0:00:18.2]} 20. Bxc6 {[%clk 0:01:16]} 20...
Nxg3 {[%clk 0:00:10.9]} 21. Rxd8 {[%clk 0:01:11.1]} 21... Rxd8 {[%clk
0:00:07.5]} 22. hxg3 {[%clk 0:01:10.3]} 22... bxc6 {[%clk 0:00:07.5]} 23. Rxa6
{[%clk 0:01:10.7]} 23... Rd1+ {[%clk 0:00:07.2]} 24. Kg2 {[%clk 0:01:10.9]}
24... g6 {[%clk 0:00:07.5]} 25. Rxc6 {[%clk 0:01:11.1]} 25... Bd8 {[%clk
0:00:08.1]} 26. b5 {[%clk 0:01:09.4]} 26... Kf8 {[%clk 0:00:07.3]} 27. b6 {[%clk
0:01:09.7]} 27... Rd7 {[%clk 0:00:06.6]} 28. Nxe5 {[%clk 0:01:05.6]} 28... Rb7
{[%clk 0:00:06.2]} 29. Rc8 {[%clk 0:00:49.5]} 29... Ke8 {[%clk 0:00:06.5]} 30.
Nc6 {[%clk 0:00:49.7]} 30... Kd7 {[%clk 0:00:06.4]} 31. Nxd8 {[%clk 0:00:50.1]}
31... Kxc8 {[%clk 0:00:07.1]} 32. Nxb7 {[%clk 0:00:50.6]} 32... Kxb7 {[%clk
0:00:07.9]} 33. e5 {[%clk 0:00:50.6]} 33... Kxb6 {[%clk 0:00:08.8]} 34. f4
{[%clk 0:00:49.3]} 34... Kc5 {[%clk 0:00:07.8]} 35. b3 {[%clk 0:00:49.7]} 35...
Kd5 {[%clk 0:00:08.2]} 36. Kf3 {[%clk 0:00:50.2]} 36... h5 {[%clk 0:00:08.9]}
37. Ke3 {[%clk 0:00:50.2]} 37... Kc5 {[%clk 0:00:09.4]} 38. Ke4 {[%clk
0:00:50.6]} 1-0

[Event "Early-Titled-Tuesday-Blitz-May-07-2024"]
[Site "Chess.com"]
[Date "2024.05.07"]
[Round "1"]
[White "scarabee43"]
[Black "ccccvhhhj"]
[Result "1-0"]
[WhiteElo "2838"]
[BlackElo "2472"]
[TimeControl "180+1"]
[EndTime "8:06:41 PDT"]
[Termination "scarabee43 won on time"]

1. Nf3 {[%clk 0:03:00.9]} 1... d5 {[%clk 0:02:58.4]} 2. e3 {[%clk 0:03:00.9]}
2... c6 {[%clk 0:02:52.1]} 3. b3 {[%clk 0:03:00.3]} 3... Bg4 {[%clk 0:02:48.7]}
4. Bb2 {[%clk 0:03:00.6]} 4... Nf6 {[%clk 0:02:48.7]} 5. Be2 {[%clk 0:02:59.6]}
5... Nbd7 {[%clk 0:02:47.9]} 6. O-O {[%clk 0:02:57.8]} 6... e6 {[%clk
0:02:46.3]} 7. c4 {[%clk 0:02:55.8]} 7... Be7 {[%clk 0:02:45.6]} 8. h3 {[%clk
0:02:54.9]} 8... Bh5 {[%clk 0:02:45.5]} 9. Nc3 {[%clk 0:02:53.7]} 9... O-O
{[%clk 0:02:44.4]} 10. d4 {[%clk 0:02:50]} 10... Ne4 {[%clk 0:02:27]} 11. Nxe4
{[%clk 0:02:38.8]} 11... dxe4 {[%clk 0:02:27.1]} 12. Nd2 {[%clk 0:02:39.6]}
12... Bg6 {[%clk 0:02:19.8]} 13. a4 {[%clk 0:02:23.3]} 13... a5 {[%clk
0:02:17.7]} 14. Ba3 {[%clk 0:02:22.7]} 14... c5 {[%clk 0:02:10.9]} 15. Nb1
{[%clk 0:02:21.7]} 15... cxd4 {[%clk 0:02:07.5]} 16. exd4 {[%clk 0:02:15.9]}
16... Nf6 {[%clk 0:01:59]} 17. Nc3 {[%clk 0:02:12]} 17... Bxa3 {[%clk
0:01:53.4]} 18. Rxa3 {[%clk 0:02:11.6]} 18... Qd6 {[%clk 0:01:54.3]} 19. Nb5
{[%clk 0:02:09.4]} 19... Qf4 {[%clk 0:01:52.7]} 20. Qc1 {[%clk 0:02:08]} 20...
Qh4 {[%clk 0:01:51.8]} 21. Qe3 {[%clk 0:02:04.4]} 21... Rad8 {[%clk 0:01:45.9]}
22. Ra2 {[%clk 0:02:04]} 22... h6 {[%clk 0:01:32.9]} 23. Rd2 {[%clk 0:01:43.7]}
23... Rd7 {[%clk 0:01:32.8]} 24. Rfd1 {[%clk 0:01:42.8]} 24... Rfd8 {[%clk
0:01:33.2]} 25. Kh2 {[%clk 0:01:27.3]} 25... Bf5 {[%clk 0:01:22.8]} 26. Nc3
{[%clk 0:01:02.8]} 26... g5 {[%clk 0:00:35.4]} 27. Kg1 {[%clk 0:00:51.1]} 27...
g4 {[%clk 0:00:30.4]} 28. Qf4 {[%clk 0:00:45.4]} 28... h5 {[%clk 0:00:26]} 29.
g3 {[%clk 0:00:43.3]} 29... Qxh3 {[%clk 0:00:21]} 30. Bf1 {[%clk 0:00:42.3]}
30... Qxf1+ {[%clk 0:00:05]} 31. Kxf1 {[%clk 0:00:42.1]} 31... Bg6 {[%clk
0:00:05.7]} 32. Qxf6 {[%clk 0:00:41.8]} 1-0

[Event "Early-Titled-Tuesday-Blitz-May-07-2024"]
[Site "Chess.com"]
[Date "2024.05.07"]
[Round "1"]
[White "maHmoUd-S-haddAd-M"]
[Black "Iskusnyh"]
[Result "0-1"]
[WhiteElo "2295"]
[BlackElo "2618"]
[TimeControl "180+1"]
[EndTime "8:06:42 PDT"]
[Termination "Iskusnyh won by resignation"]

1. e4 {[%clk 0:03:00.9]} 1... e6 {[%clk 0:02:58.6]} 2. d4 {[%clk 0:02:56.5]}
2... d5 {[%clk 0:02:58.2]} 3. Bd3 {[%clk 0:02:56.9]} 3... c5 {[%clk 0:02:57.1]}
4. exd5 {[%clk 0:02:55.2]} 4... exd5 {[%clk 0:02:55.5]} 5. c3 {[%clk 0:02:54.3]}
5... Nc6 {[%clk 0:02:49.2]} 6. Nf3 {[%clk 0:02:52.6]} 6... Nf6 {[%clk
0:02:49.5]} 7. O-O {[%clk 0:02:50.5]} 7... Bd6 {[%clk 0:02:50]} 8. dxc5 {[%clk
0:02:50.6]} 8... Bxc5 {[%clk 0:02:49]} 9. Re1+ {[%clk 0:02:50.9]} 9... Be6
{[%clk 0:02:49.1]} 10. h3 {[%clk 0:02:51.1]} 10... O-O {[%clk 0:02:48.8]} 11.
Bg5 {[%clk 0:02:51.2]} 11... Qb6 {[%clk 0:02:29.6]} 12. Qc2 {[%clk 0:02:20.8]}
12... Ne4 {[%clk 0:02:22.7]} 13. Rxe4 {[%clk 0:02:05.5]} 13... dxe4 {[%clk
0:02:23.6]} 14. Bxe4 {[%clk 0:02:05.9]} 14... h6 {[%clk 0:02:16.7]} 15. Bh4
{[%clk 0:01:59.2]} 15... Rfe8 {[%clk 0:02:10.9]} 16. Nbd2 {[%clk 0:01:55.7]}
16... Qc7 {[%clk 0:01:47.7]} 17. Bg3 {[%clk 0:01:38]} 17... Qxg3 {[%clk
0:01:45.2]} 18. Nb3 {[%clk 0:01:34.3]} 18... Bxh3 {[%clk 0:01:28.7]} 19. Nfd4
{[%clk 0:01:22.5]} 19... Bxd4 {[%clk 0:01:26]} 20. cxd4 {[%clk 0:01:10.5]} 20...
Qg5 {[%clk 0:01:23.9]} 21. Kh2 {[%clk 0:01:02.7]} 21... Qf4+ {[%clk 0:01:18.8]}
22. Kxh3 {[%clk 0:01:00.7]} 22... Rxe4 {[%clk 0:01:15.3]} 23. g3 {[%clk
0:01:01.2]} 23... Qf3 {[%clk 0:01:10.5]} 24. Nd2 {[%clk 0:00:55.8]} 24... Qh5+
{[%clk 0:00:51.9]} 25. Kg2 {[%clk 0:00:56.3]} 25... Re2 {[%clk 0:00:52.2]} 26.
Qd3 {[%clk 0:00:49.2]} 26... Qd5+ {[%clk 0:00:47.6]} 27. Nf3 {[%clk 0:00:48.4]}
27... Rae8 {[%clk 0:00:42.7]} 28. Kf1 {[%clk 0:00:23.9]} 28... R8e3 {[%clk
0:00:36.4]} 29. Qxe2 {[%clk 0:00:17]} 29... Rxe2 {[%clk 0:00:36.3]} 30. Kxe2
{[%clk 0:00:17.9]} 30... Qe4+ {[%clk 0:00:36.6]} 31. Kd2 {[%clk 0:00:15.1]}
31... Qxf3 {[%clk 0:00:37.5]} 32. Re1 {[%clk 0:00:15.2]} 32... Qxf2+ {[%clk
0:00:36.5]} 33. Re2 {[%clk 0:00:15.6]} 33... Qxd4+ {[%clk 0:00:37.1]} 34. Kc1
{[%clk 0:00:14.8]} 34... Nb4 {[%clk 0:00:35.6]} 0-1

[Event "Early-Titled-Tuesday-Blitz-May-07-2024"]
[Site "Chess.com"]
[Date "2024.05.07"]
[Round "1"]
[White "andrew-blr"]
[Black "Shiner22"]
[Result "1-0"]
[WhiteElo "2607"]
[BlackElo "2272"]
[TimeControl "180+1"]
[EndTime "8:06:45 PDT"]
[Termination "andrew-blr won on time"]

1. d4 {[%clk 0:02:59.3]} 1... Nf6 {[%clk 0:02:59.6]} 2. c4 {[%clk 0:02:58.9]}
2... e6 {[%clk 0:03:00.1]} 3. Nc3 {[%clk 0:02:58.5]} 3... Bb4 {[%clk 0:03:00]}
4. a3 {[%clk 0:02:58.5]} 4... Bxc3+ {[%clk 0:02:59.7]} 5. bxc3 {[%clk
0:02:59.4]} 5... c5 {[%clk 0:02:59.2]} 6. f3 {[%clk 0:02:59]} 6... d5 {[%clk
0:02:56.8]} 7. cxd5 {[%clk 0:02:57.7]} 7... exd5 {[%clk 0:02:56.8]} 8. e3 {[%clk
0:02:57]} 8... O-O {[%clk 0:02:56.9]} 9. Bd3 {[%clk 0:02:56.2]} 9... Nc6 {[%clk
0:02:55.5]} 10. Ne2 {[%clk 0:02:55.4]} 10... Re8 {[%clk 0:02:54]} 11. O-O {[%clk
0:02:54.5]} 11... b6 {[%clk 0:02:48.9]} 12. Ng3 {[%clk 0:02:53.7]} 12... h5
{[%clk 0:02:41]} 13. Ra2 {[%clk 0:02:50.7]} 13... g5 {[%clk 0:02:15.2]} 14. Re2
{[%clk 0:02:42.7]} 14... h4 {[%clk 0:01:49.8]} 15. Nh1 {[%clk 0:02:38.7]} 15...
Kg7 {[%clk 0:01:44.7]} 16. Bb2 {[%clk 0:02:36.7]} 16... c4 {[%clk 0:01:43.7]}
17. Bb1 {[%clk 0:02:35.5]} 17... Be6 {[%clk 0:01:30.4]} 18. Bc1 {[%clk
0:02:33.5]} 18... Nh5 {[%clk 0:01:23.9]} 19. Nf2 {[%clk 0:02:29.3]} 19... Qe7
{[%clk 0:01:23.2]} 20. e4 {[%clk 0:02:27.3]} 20... Qd8 {[%clk 0:01:13.3]} 21.
Qc2 {[%clk 0:02:26.3]} 21... dxe4 {[%clk 0:01:05.8]} 22. fxe4 {[%clk 0:02:25.5]}
22... Ne7 {[%clk 0:00:22]} 23. Bxg5 {[%clk 0:02:20.7]} 23... f6 {[%clk
0:00:20.5]} 24. Bxh4 {[%clk 0:02:15.4]} 24... Ng6 {[%clk 0:00:19.9]} 25. Bg3
{[%clk 0:02:06.4]} 25... Nxg3 {[%clk 0:00:18.7]} 26. hxg3 {[%clk 0:02:06.8]}
26... Rh8 {[%clk 0:00:16.8]} 27. Nd1 {[%clk 0:01:45.5]} 27... Rh6 {[%clk
0:00:15]} 28. Ne3 {[%clk 0:01:45.1]} 28... Qh8 {[%clk 0:00:13.7]} 29. Nf5+
{[%clk 0:01:39.1]} 29... Bxf5 {[%clk 0:00:13.4]} 30. exf5 {[%clk 0:01:39.1]}
30... Rh1+ {[%clk 0:00:13.3]} 31. Kf2 {[%clk 0:01:39.5]} 31... Rxf1+ {[%clk
0:00:13.9]} 32. Kxf1 {[%clk 0:01:40.1]} 32... Qh1+ {[%clk 0:00:13.6]} 33. Kf2
{[%clk 0:01:40.4]} 33... Nh4 {[%clk 0:00:11.3]} 34. gxh4 {[%clk 0:01:37.7]}
34... Qxh4+ {[%clk 0:00:10.6]} 35. Kg1 {[%clk 0:01:37.8]} 35... Rh8 {[%clk
0:00:10.4]} 36. Re3 {[%clk 0:01:24.1]} 36... Qh1+ {[%clk 0:00:09.9]} 37. Kf2
{[%clk 0:01:24.1]} 37... Rh2 {[%clk 0:00:09.7]} 38. Rg3+ {[%clk 0:01:23]} 38...
Kf7 {[%clk 0:00:09.7]} 39. Qe4 {[%clk 0:01:20.8]} 39... Rxg2+ {[%clk 0:00:04.4]}
40. Rxg2 {[%clk 0:01:18.3]} 40... Qh7 {[%clk 0:00:01.1]} 41. Ba2 {[%clk
0:01:13.7]} 41... b5 {[%clk 0:00:00.5]} 42. a4 {[%clk 0:01:14.2]} 42... a6
{[%clk 0:00:00.1]} 43. axb5 {[%clk 0:01:15.1]} 1-0

[Event "Early-Titled-Tuesday-Blitz-May-07-2024"]
[Site "Chess.com"]
[Date "2024.05.07"]
[Round "1"]
[White "NovoselovRoman"]
[Black "Pertinhez76"]
[Result "1-0"]
[WhiteElo "2566"]
[BlackElo "2144"]
[TimeControl "180+1"]
[EndTime "8:06:47 PDT"]
[Termination "NovoselovRoman won by resignation"]

1. e4 {[%clk 0:02:59.7]} 1... e6 {[%clk 0:03:00.2]} 2. d4 {[%clk 0:02:59.5]}
2... d5 {[%clk 0:03:00.8]} 3. Nc3 {[%clk 0:03:00.2]} 3... Nf6 {[%clk 0:03:00]}
4. exd5 {[%clk 0:03:00]} 4... exd5 {[%clk 0:02:59.7]} 5. Bd3 {[%clk 0:03:00.7]}
5... Be7 {[%clk 0:02:59.2]} 6. Nge2 {[%clk 0:03:00.5]} 6... O-O {[%clk
0:02:59.8]} 7. Bg5 {[%clk 0:02:58.9]} 7... Nc6 {[%clk 0:02:58.7]} 8. a3 {[%clk
0:02:58]} 8... Re8 {[%clk 0:02:58.4]} 9. Qd2 {[%clk 0:02:55.1]} 9... a6 {[%clk
0:02:57.8]} 10. O-O {[%clk 0:02:40.3]} 10... Bg4 {[%clk 0:02:56.5]} 11. Nf4
{[%clk 0:02:39.8]} 11... h6 {[%clk 0:02:54.5]} 12. Bxf6 {[%clk 0:02:28.9]} 12...
Bxf6 {[%clk 0:02:54.7]} 13. Ncxd5 {[%clk 0:02:27.6]} 13... Nxd4 {[%clk
0:02:48.7]} 14. h3 {[%clk 0:02:19.2]} 14... Be6 {[%clk 0:02:40.1]} 15. Nxf6+
{[%clk 0:02:13.8]} 15... Qxf6 {[%clk 0:02:40.1]} 16. Rad1 {[%clk 0:02:07.7]}
16... Rad8 {[%clk 0:02:39.1]} 17. Nh5 {[%clk 0:01:51.2]} 17... Qg5 {[%clk
0:02:33.6]} 18. Qxg5 {[%clk 0:01:48.5]} 18... hxg5 {[%clk 0:02:34.5]} 19. Ng3
{[%clk 0:01:43.8]} 19... g6 {[%clk 0:02:31]} 20. Ne4 {[%clk 0:01:42.9]} 20... g4
{[%clk 0:02:23.8]} 21. Nf6+ {[%clk 0:01:42.9]} 21... Kg7 {[%clk 0:02:24.2]} 22.
Nxe8+ {[%clk 0:01:43.2]} 22... Rxe8 {[%clk 0:02:24.8]} 23. hxg4 {[%clk
0:01:43.3]} 23... Bxg4 {[%clk 0:02:16.3]} 24. f3 {[%clk 0:01:42.7]} 24... Bc8
{[%clk 0:02:13.7]} 25. Rfe1 {[%clk 0:01:43.2]} 25... Rd8 {[%clk 0:02:12.7]} 26.
Re7 {[%clk 0:01:40]} 26... Ne6 {[%clk 0:02:10.1]} 27. Re1 {[%clk 0:01:12.7]}
27... Kf6 {[%clk 0:02:07.3]} 28. R1xe6+ {[%clk 0:01:10.8]} 28... Bxe6 {[%clk
0:02:02.1]} 29. Rxc7 {[%clk 0:01:11.7]} 29... Rd7 {[%clk 0:01:59.4]} 30. Rxd7
{[%clk 0:00:58.7]} 30... Bxd7 {[%clk 0:02:00.3]} 31. Kf2 {[%clk 0:00:59.2]}
31... Ke5 {[%clk 0:01:59.9]} 32. Ke3 {[%clk 0:00:59.1]} 32... g5 {[%clk
0:02:00.1]} 33. g3 {[%clk 0:00:59.3]} 33... f5 {[%clk 0:02:00.2]} 34. f4+ {[%clk
0:00:59.9]} 34... gxf4+ {[%clk 0:02:00.1]} 35. gxf4+ {[%clk 0:01:00.8]} 35...
Kd5 {[%clk 0:01:58.9]} 36. Be2 {[%clk 0:01:01.2]} 36... b5 {[%clk 0:01:57.7]}
37. Bf3+ {[%clk 0:00:56.1]} 37... Kc5 {[%clk 0:01:57.7]} 38. Kd3 {[%clk
0:00:53.4]} 38... a5 {[%clk 0:01:57.6]} 39. b3 {[%clk 0:00:47.2]} 39... Be6
{[%clk 0:01:55.1]} 40. Bh5 {[%clk 0:00:33.1]} 40... Bd5 {[%clk 0:01:54.5]} 41.
Bg6 {[%clk 0:00:27.2]} 41... Be4+ {[%clk 0:01:54.6]} 42. Kc3 {[%clk 0:00:27.6]}
42... b4+ {[%clk 0:01:54.8]} 43. axb4+ {[%clk 0:00:28.3]} 43... axb4+ {[%clk
0:01:55.7]} 44. Kd2 {[%clk 0:00:28.1]} 44... Kd4 {[%clk 0:01:56.3]} 45. Bh7
{[%clk 0:00:25.6]} 45... Kd5 {[%clk 0:01:53.2]} 46. c3 {[%clk 0:00:26.2]} 46...
Kc5 {[%clk 0:01:52.5]} 47. Bg8 {[%clk 0:00:23.8]} 47... Bb1 {[%clk 0:01:49.6]}
48. cxb4+ {[%clk 0:00:20.4]} 48... Kxb4 {[%clk 0:01:49.3]} 49. Ke3 {[%clk
0:00:21.3]} 49... Kc5 {[%clk 0:01:47]} 50. Be6 {[%clk 0:00:19.6]} 50... Be4
{[%clk 0:01:46.5]} 51. b4+ {[%clk 0:00:20.1]} 51... Kxb4 {[%clk 0:01:46.4]} 52.
Kd4 {[%clk 0:00:20.7]} 52... Kb5 {[%clk 0:01:45.9]} 53. Ke5 {[%clk 0:00:21.4]}
53... Kc6 {[%clk 0:01:45.6]} 54. Bxf5 {[%clk 0:00:22]} 54... Bd5 {[%clk
0:01:43.8]} 55. Be4 {[%clk 0:00:21.9]} 55... Bxe4 {[%clk 0:01:42.2]} 56. Kxe4
{[%clk 0:00:22.8]} 56... Kd7 {[%clk 0:01:42.1]} 57. Kf5 {[%clk 0:00:23.5]} 57...
Ke8 {[%clk 0:01:41.9]} 58. Kg6 {[%clk 0:00:24.1]} 58... Kf8 {[%clk 0:01:42.4]}
59. Kf6 {[%clk 0:00:20.8]} 59... Kg8 {[%clk 0:01:42.7]} 60. Ke7 {[%clk
0:00:20.9]} 60... Kg7 {[%clk 0:01:42.8]} 61. f5 {[%clk 0:00:21.6]} 61... Kg8
{[%clk 0:01:42.5]} 62. f6 {[%clk 0:00:22.3]} 62... Kh8 {[%clk 0:01:42.2]} 63. f7
{[%clk 0:00:23]} 63... Kg7 {[%clk 0:01:41.7]} 64. f8=Q+ {[%clk 0:00:22.8]} 64...
Kh7 {[%clk 0:01:42.6]} 65. Qf7+ {[%clk 0:00:19.5]} 65... Kh8 {[%clk 0:01:41.2]}
66. Qf6+ {[%clk 0:00:19.9]} 66... Kh7 {[%clk 0:01:41.5]} 67. Qg5 {[%clk
0:00:20.6]} 1-0

[Event "Early-Titled-Tuesday-Blitz-May-07-2024"]
[Site "Chess.com"]
[Date "2024.05.07"]
[Round "1"]
[White "DenisQ"]
[Black "AsaHoffmann"]
[Result "1-0"]
[WhiteElo "2725"]
[BlackElo "2411"]
[TimeControl "180+1"]
[EndTime "8:06:49 PDT"]
[Termination "DenisQ won by resignation"]

1. Nf3 {[%clk 0:03:00.9]} 1... d6 {[%clk 0:02:55.8]} 2. c4 {[%clk 0:03:00.2]}
2... e5 {[%clk 0:02:51.7]} 3. Nc3 {[%clk 0:03:00.1]} 3... Nf6 {[%clk 0:02:50.7]}
4. g3 {[%clk 0:02:59.5]} 4... c6 {[%clk 0:02:50.5]} 5. Bg2 {[%clk 0:02:59.4]}
5... Be7 {[%clk 0:02:50.5]} 6. O-O {[%clk 0:02:59.4]} 6... O-O {[%clk
0:02:50.3]} 7. b4 {[%clk 0:02:58.8]} 7... Be6 {[%clk 0:02:48.2]} 8. d3 {[%clk
0:02:55.3]} 8... h6 {[%clk 0:02:47.8]} 9. b5 {[%clk 0:02:52]} 9... Qd7 {[%clk
0:02:47.6]} 10. Rb1 {[%clk 0:02:50.3]} 10... Bh3 {[%clk 0:02:46]} 11. bxc6
{[%clk 0:02:49.4]} 11... bxc6 {[%clk 0:02:43.9]} 12. c5 {[%clk 0:02:46.5]} 12...
Bxg2 {[%clk 0:02:41.9]} 13. Kxg2 {[%clk 0:02:46.1]} 13... Na6 {[%clk 0:02:39.1]}
14. cxd6 {[%clk 0:02:44.1]} 14... Bxd6 {[%clk 0:02:38.1]} 15. Nd2 {[%clk
0:02:37.5]} 15... Rab8 {[%clk 0:02:31.5]} 16. Rxb8 {[%clk 0:02:29.3]} 16... Rxb8
{[%clk 0:02:30.2]} 17. Nc4 {[%clk 0:02:29.2]} 17... Bc7 {[%clk 0:02:29.2]} 18.
Bd2 {[%clk 0:02:20]} 18... Nc5 {[%clk 0:02:25]} 19. Qc2 {[%clk 0:02:16.9]} 19...
Ne6 {[%clk 0:02:18]} 20. Rb1 {[%clk 0:02:14.2]} 20... Rxb1 {[%clk 0:02:09.5]}
21. Qxb1 {[%clk 0:02:12.1]} 21... Nd5 {[%clk 0:01:53.6]} 22. Qb7 {[%clk
0:02:00.3]} 22... Nxc3 {[%clk 0:01:27.3]} 23. Bxc3 {[%clk 0:01:58.4]} 23... Qd5+
{[%clk 0:01:23.9]} 24. f3 {[%clk 0:01:52.6]} 24... a5 {[%clk 0:01:15]} 25. Qa8+
{[%clk 0:01:41.7]} 25... Kh7 {[%clk 0:01:13.7]} 26. Bxa5 {[%clk 0:01:40.3]}
26... Bxa5 {[%clk 0:01:07.5]} 27. Qxa5 {[%clk 0:01:39.1]} 27... c5 {[%clk
0:01:05.7]} 28. a4 {[%clk 0:01:26.5]} 28... Nd4 {[%clk 0:01:05]} 29. Qd2 {[%clk
0:01:26.1]} 29... f5 {[%clk 0:01:02]} 30. Qe3 {[%clk 0:01:23.3]} 30... Nc6
{[%clk 0:00:59]} 31. a5 {[%clk 0:01:21.2]} 31... g5 {[%clk 0:00:45.8]} 32. h3
{[%clk 0:01:12.5]} 32... Kg6 {[%clk 0:00:45.3]} 33. g4 {[%clk 0:01:11.7]} 33...
fxg4 {[%clk 0:00:39.4]} 34. hxg4 {[%clk 0:01:09.5]} 34... Kf6 {[%clk 0:00:34.1]}
35. a6 {[%clk 0:01:05.4]} 35... Qd4 {[%clk 0:00:29.8]} 36. Qxd4 {[%clk
0:00:59.1]} 36... exd4 {[%clk 0:00:28.7]} 37. Na5 {[%clk 0:00:52.4]} 37... Na7
{[%clk 0:00:27.2]} 38. Nb3 {[%clk 0:00:51.5]} 38... c4 {[%clk 0:00:24]} 39. dxc4
{[%clk 0:00:50.7]} 39... Ke5 {[%clk 0:00:23.7]} 40. Kf2 {[%clk 0:00:49.1]} 40...
Nc6 {[%clk 0:00:19.4]} 41. Ke1 {[%clk 0:00:47.2]} 41... Kf4 {[%clk 0:00:16.9]}
42. Nxd4 {[%clk 0:00:44.9]} 1-0

[Event "Early-Titled-Tuesday-Blitz-May-07-2024"]
[Site "Chess.com"]
[Date "2024.05.07"]
[Round "1"]
[White "mortngabriel"]
[Black "baki83"]
[Result "0-1"]
[WhiteElo "2508"]
[BlackElo "2921"]
[TimeControl "180+1"]
[EndTime "8:06:50 PDT"]
[Termination "baki83 won on time"]

1. e4 {[%clk 0:03:00.5]} 1... c5 {[%clk 0:02:34.3]} 2. Nf3 {[%clk 0:02:59]} 2...
d6 {[%clk 0:02:34.6]} 3. Bb5+ {[%clk 0:02:56.5]} 3... Bd7 {[%clk 0:02:34.4]} 4.
Bxd7+ {[%clk 0:02:55.8]} 4... Qxd7 {[%clk 0:02:33.7]} 5. c4 {[%clk 0:02:55.4]}
5... e5 {[%clk 0:02:32.7]} 6. O-O {[%clk 0:02:54.7]} 6... Nc6 {[%clk 0:02:33.1]}
7. Nc3 {[%clk 0:02:50.4]} 7... Be7 {[%clk 0:02:32.9]} 8. d3 {[%clk 0:02:50]}
8... Bd8 {[%clk 0:02:32.7]} 9. a3 {[%clk 0:02:43.9]} 9... Nge7 {[%clk
0:02:32.8]} 10. Rb1 {[%clk 0:02:41.6]} 10... Ba5 {[%clk 0:02:29.3]} 11. Bd2
{[%clk 0:02:23.7]} 11... Bxc3 {[%clk 0:02:23.7]} 12. Bxc3 {[%clk 0:02:21.7]}
12... O-O {[%clk 0:02:24]} 13. b4 {[%clk 0:02:21.5]} 13... f6 {[%clk 0:02:13.8]}
14. Ne1 {[%clk 0:02:10.8]} 14... Ng6 {[%clk 0:02:09.9]} 15. Nc2 {[%clk
0:01:53.2]} 15... f5 {[%clk 0:02:09.5]} 16. f3 {[%clk 0:01:35.5]} 16... f4
{[%clk 0:01:54.7]} 17. Rb2 {[%clk 0:01:06.4]} 17... Rab8 {[%clk 0:01:53.6]} 18.
a4 {[%clk 0:00:53.1]} 18... Nd8 {[%clk 0:01:40.1]} 19. a5 {[%clk 0:00:51.4]}
19... Ne6 {[%clk 0:01:38.4]} 20. Na3 {[%clk 0:00:42.5]} 20... Nc7 {[%clk
0:01:25.3]} 21. Nb1 {[%clk 0:00:39.8]} 21... b5 {[%clk 0:01:20.6]} 22. bxc5
{[%clk 0:00:35.3]} 22... dxc5 {[%clk 0:01:19.9]} 23. cxb5 {[%clk 0:00:33.1]}
23... Nxb5 {[%clk 0:01:18.5]} 24. Qa4 {[%clk 0:00:30.7]} 24... a6 {[%clk
0:01:14.7]} 25. Qc4+ {[%clk 0:00:29.5]} 25... Kh8 {[%clk 0:01:14]} 26. Be1
{[%clk 0:00:13.8]} 26... Na3 {[%clk 0:01:01.6]} 27. Qc1 {[%clk 0:00:07.9]} 27...
Qd4+ {[%clk 0:00:53.8]} 28. Bf2 {[%clk 0:00:06]} 28... Qxb2 {[%clk 0:00:53.2]}
29. Qxb2 {[%clk 0:00:06.9]} 29... Rxb2 {[%clk 0:00:53.1]} 30. Nxa3 {[%clk
0:00:07.8]} 30... Rb3 {[%clk 0:00:45.9]} 31. Nc4 {[%clk 0:00:07.5]} 31... Rxd3
{[%clk 0:00:41.8]} 32. Bxc5 {[%clk 0:00:06.9]} 32... Rc8 {[%clk 0:00:38.3]} 33.
Rb1 {[%clk 0:00:04.7]} 33... h6 {[%clk 0:00:34.4]} 0-1